bitfinex-derivatives/quotes_BTCF0:USTF0_20250222
["timestamp","ask_amount","ask_price","bid_price","bid_amount"]
[1740218860833,0.00015533,96597.0,96596.0,0.31493055]
[1740218861630,0.20723833,96597.0,96596.0,0.25665125]
[1740218861932,0.00015533,96597.0,96596.0,0.25665125]
[1740218862132,0.20723833,96597.0,96596.0,0.25665125]
[1740218862330,0.20723833,96597.0,96596.0,0.28255378]
[1740218862637,0.20723833,96597.0,96596.0,0.25665125]
[1740218863028,0.20723833,96597.0,96596.0,0.25565125]
[1740218863525,0.20723833,96597.0,96596.0,0.23946256]
[1740218863936,0.00015533,96597.0,96596.0,0.23946256]
[1740218866138,0.20723833,96597.0,96596.0,0.03237746]
[1740218866343,0.00015533,96597.0,96596.0,0.03237746]
[1740218866731,0.00015533,96597.0,96596.0,0.23946256]
[1740218867128,0.20723833,96597.0,96596.0,0.03237746]
[1740218868231,0.20728214,96597.0,96596.0,0.03237746]
[1740218868435,0.20695379,96597.0,96596.0,0.03237746]
[1740218868642,0.20695379,96597.0,96596.0,0.23946256]
[1740218868643,4.381e-05,96597.0,96596.0,0.23946256]
[1740218868840,0.20712681,96597.0,96596.0,0.23946256]
[1740218869041,0.20712681,96597.0,96596.0,0.03237746]
[1740218869344,4.381e-05,96597.0,96596.0,0.23946256]
[1740218869539,0.20713031,96597.0,96596.0,0.23946256]
[1740218869843,0.20712681,96597.0,96596.0,0.23946256]
[1740218870044,0.20712681,96597.0,96596.0,0.23946266]
[1740218870249,0.20712681,96597.0,96596.0,0.03237746]
[1740218871136,0.20712681,96597.0,96596.0,0.23946306]
[1740218871334,0.20712681,96597.0,96596.0,0.03237746]
[1740218871546,0.20712681,96597.0,96596.0,0.23946306]
[1740218872640,0.20712681,96597.0,96596.0,0.03237746]
[1740218879452,0.56792681,96597.0,96596.0,0.03237746]
[1740218880635,0.56792681,96597.0,96592.0,0.2477433]
[1740218880636,0.2070916,96593.0,96592.0,0.2477433]
[1740218882853,0.0324,96596.0,96595.0,0.2070873]
[1740218883155,0.2070916,96593.0,96592.0,0.063]
[1740218883549,0.2070916,96593.0,96592.0,0.07595189]
[1740218883851,0.2070898,96595.0,96594.0,0.2070894]
[1740218884148,0.2070898,96595.0,96594.0,0.01618986]
[1740218884748,0.2070898,96595.0,96592.0,0.07918986]
[1740218884749,0.2070916,96593.0,96592.0,0.07918986]
[1740218884945,0.2070916,96593.0,96592.0,0.09214188]
[1740218885147,0.41261491,96597.0,96592.0,0.09214188]
[1740218885148,0.36084381,96597.0,96593.0,0.0517729]
[1740218885348,0.36084381,96597.0,96596.0,0.2070851]
[1740218885553,0.36084381,96597.0,96596.0,0.22003712]
[1740218885757,0.36084381,96597.0,96596.0,0.26212959]
[1740218886952,0.36084381,96597.0,96596.0,0.30422206]
[1740218887351,0.36084381,96597.0,96596.0,0.30422154]
[1740218887657,0.36084381,96597.0,96596.0,1.3538511]
[1740218888158,0.3070766,96600.0,96599.0,0.2070787]
[1740218888355,0.1,96600.0,96599.0,0.26212267]
[1740218888551,0.3070766,96600.0,96599.0,0.26212267]
[1740218889250,0.3070766,96600.0,96599.0,0.27831076]
[1740218889451,0.3070766,96600.0,96599.0,0.26535926]
[1740218889452,0.1,96600.0,96599.0,0.26535926]
[1740218889652,0.1,96600.0,96599.0,0.23945701]
[1740218890253,0.1,96600.0,96599.0,0.2232676]
[1740218890462,0.3070766,96600.0,96599.0,0.2232676]
[1740218890656,0.3070766,96600.0,96599.0,0.2070787]
[1740218890852,0.1,96600.0,96599.0,0.2070787]
[1740218896360,0.1,96600.0,96599.0,0.220029]
[1740218897661,0.1,96600.0,96599.0,0.69338844]
[1740218897855,0.1,96600.0,96599.0,0.68043814]
[1740218900875,0.1,96600.0,96599.0,0.2070787]
[1740218903173,0.1,96600.0,96599.0,0.59701504]
[1740218903366,0.00015472,96606.0,96605.0,0.207066]
[1740218903562,0.00015472,96606.0,96605.0,0.567866]
[1740218904574,0.00015472,96606.0,96605.0,0.568866]
[1740218925392,0.00015472,96606.0,96605.0,0.81627124]
[1740218925789,0.0319,96613.0,96605.0,0.60920524]
[1740218926097,0.2389702,96613.0,96612.0,0.2070715]
[1740218926499,0.2708702,96613.0,96612.0,0.2070715]
[1740218928402,0.2708702,96613.0,96612.0,0.2080715]
[1740218928996,0.2708702,96613.0,96612.0,0.2090715]
[1740218940608,0.0826633,96621.0,96612.0,0.002]
[1740218940810,0.0629,96620.0,96617.0,0.0517647]
[1740218941002,0.0629,96620.0,96615.0,0.2070634]
[1740218941003,0.207063,96616.0,96615.0,0.2070634]
[1740218941508,0.2070597,96618.0,96617.0,0.2070569]
[1740218942202,0.2070597,96618.0,96617.0,0.25013966]
[1740218942405,0.2070597,96618.0,96617.0,0.04308276]
[1740218942604,0.2070597,96618.0,96617.0,0.04308404]
[1740218942808,0.2070597,96618.0,96617.0,0.04308319]
[1740218943112,0.2070597,96618.0,96617.0,0.22424648]
[1740218943311,0.0305,96619.0,96617.0,0.22424648]
[1740218943312,0.2375571,96619.0,96618.0,0.2070587]
[1740218943502,0.2375571,96619.0,96618.0,0.22324438]
[1740218943699,0.2375571,96619.0,96618.0,0.01618568]
[1740218943902,0.2375571,96619.0,96618.0,0.22324438]
[1740218944612,0.2375571,96619.0,96618.0,0.01618568]
[1740218945007,0.0305,96619.0,96617.0,0.001]
[1740218945207,0.2070587,96618.0,96617.0,0.001]
[1740218945512,0.0305,96619.0,96606.0,0.60839506]
[1740218945711,0.2070681,96614.0,96613.0,0.01618671]
[1740218946013,0.2070681,96614.0,96613.0,0.2070694]
[1740218946507,0.2893208,96619.0,96618.0,0.001]
[1740218947808,0.1656608,96617.0,96616.0,0.2070621]
[1740218948219,0.0822643,96619.0,96614.0,0.0517666]
[1740218948413,0.2070651,96615.0,96614.0,0.2588321]
[1740218948911,0.3608,96624.0,96617.0,0.2070587]
[1740218949112,0.2070565,96619.0,96616.0,0.2070625]
[1740218949316,0.3608,96624.0,96612.0,0.0517677]
[1740218949317,0.051763,96621.0,96612.0,0.0517677]
[1740218949514,0.051763,96621.0,96618.0,0.001]
[1740218949713,0.2070565,96619.0,96618.0,0.001]
[1740218950519,0.2588324,96617.0,96616.0,0.2070621]
[1740218952708,0.2070668,96617.0,96616.0,0.2070621]
[1740218953019,0.2588234,96620.0,96619.0,0.2070565]
[1740218953219,0.2070587,96619.0,96618.0,0.2070573]
[1740218954607,0.2070565,96619.0,96618.0,0.26384844]
[1740218954813,0.2070565,96619.0,96618.0,0.47090714]
[1740218955215,0.2070565,96619.0,96618.0,0.48385597]
[1740218955418,0.2070565,96619.0,96618.0,0.47090714]
[1740218956325,0.2070565,96619.0,96618.0,0.26484844]
[1740218956620,0.2070565,96619.0,96618.0,0.47190714]
[1740218957214,0.2070565,96619.0,96618.0,0.45572041]
[1740218957414,0.2070565,96619.0,96618.0,0.24866171]
[1740218957615,0.2070565,96619.0,96618.0,0.2080587]
[1740218960126,0.2588173,96622.0,96621.0,0.2070523]
[1740218960427,0.2588201,96620.0,96619.0,0.2070553]
[1740218960826,0.0832627,96622.0,96618.0,0.0527643]
[1740218960827,0.0315,96622.0,96618.0,0.0527643]
[1740218961031,0.0315,96622.0,96621.0,0.2070523]
[1740218961328,0.2385501,96622.0,96621.0,0.2070523]
[1740218962024,0.2070501,96622.0,96621.0,0.2070523]
[1740218962224,0.2070501,96622.0,96621.0,0.01718507]
[1740218962728,0.2070501,96622.0,96621.0,0.2080523]
[1740218962924,0.0648,96630.0,96621.0,0.01718537]
[1740218963127,0.05175,96646.0,96624.0,0.3608]
[1740218963324,0.2070171,96638.0,96630.0,0.08106566]
[1740218963632,0.01035691,96638.0,96631.0,0.04658537]
[1740218963828,0.0317,96641.0,96632.0,0.01618537]
[1740218964044,0.2070244,96634.0,96633.0,0.02913145]
[1740218964325,0.2070244,96634.0,96633.0,0.07444295]
[1740218964631,0.2070244,96634.0,96633.0,0.1035717]
[1740218964830,0.2070244,96634.0,96633.0,0.09062555]
[1740218965028,0.2070244,96634.0,96633.0,0.46221841]
[1740218965216,0.2070244,96634.0,96633.0,0.42985046]
[1740218965422,0.0621,96635.0,96633.0,0.41366786]
[1740218965732,0.0621,96635.0,96634.0,0.042075]
[1740218965926,0.2691223,96635.0,96634.0,0.042075]
[1740218966135,0.2691223,96635.0,96634.0,0.01618269]
[1740218966919,0.0621,96635.0,96634.0,0.22320709]
[1740218967135,0.032,96635.0,96634.0,0.2490994]
[1740218968922,0.2390223,96635.0,96634.0,0.043075]
[1740218969126,0.032,96635.0,96634.0,0.043075]
[1740218969530,0.032,96635.0,96634.0,0.2500994]
[1740218969836,0.032,96635.0,96634.0,0.042075]
[1740218970031,0.032,96635.0,96634.0,0.2490994]
[1740218970336,0.032,96635.0,96634.0,0.28146477]
[1740218971331,0.032,96635.0,96634.0,0.2490994]
[1740218971526,0.032,96635.0,96634.0,0.64226162]
[1740218971834,0.032,96635.0,96634.0,0.65520659]
[1740218972331,0.032,96635.0,96634.0,0.67138781]
[1740218972929,0.032,96635.0,96634.0,0.65844284]
[1740218974235,0.0317,96641.0,96640.0,0.2070115]
[1740218974738,0.0317,96641.0,96634.0,0.3622]
[1740218975039,0.0317,96641.0,96634.0,0.4125555]
[1740218975333,0.0317,96641.0,96636.0,0.207019]
[1740218975535,0.0331,96640.0,96634.0,0.3622]
[1740218975725,0.0331,96640.0,96634.0,0.3608]
[1740218975931,0.0331,96640.0,96639.0,0.2070137]
[1740218977434,0.0331,96640.0,96637.0,0.207016]
[1740218977635,0.0331,96640.0,96634.0,0.3608]
[1740218977825,0.084853,96640.0,96634.0,0.3608]
[1740218978030,0.0331,96640.0,96634.0,0.3608]
[1740218978230,0.0517542,96638.0,96634.0,0.3608]
[1740218978426,0.2401124,96640.0,96634.0,0.3608]
[1740218978637,0.0331,96640.0,96635.0,0.0517554]
[1740218978926,0.2070163,96638.0,96637.0,0.207018]
[1740218979140,0.2401129,96640.0,96638.0,0.2070155]
[1740218979350,0.0517543,96638.0,96636.0,0.2070185]
[1740218979538,0.2070201,96637.0,96636.0,0.2070185]
[1740218980833,0.2070223,96635.0,96634.0,0.75433763]
[1740218981032,0.2070223,96635.0,96634.0,0.75293763]
[1740218981734,0.2070223,96635.0,96634.0,0.5678227]
[1740218982136,0.2070223,96635.0,96634.0,0.3608]
[1740218982532,0.2070223,96635.0,96634.0,0.2070244]
[1740218982845,0.5678223,96635.0,96634.0,0.2070244]
[1740218987347,0.3608,96635.0,96623.0,0.00015524]
[1740218987544,0.5678437,96625.0,96624.0,0.39216073]
[1740218988547,0.5996437,96625.0,96624.0,0.39216073]
[1740218988949,0.61025058,96625.0,96624.0,0.4538657]
[1740218990348,0.61025058,96625.0,96624.0,0.2468199]
[1740218991151,1.43065058,96625.0,96624.0,0.2468199]
[1740218991744,1.48241148,96625.0,96624.0,0.001]
[1740218994754,1.48241148,96625.0,96623.0,0.00015524]
[1740218994755,0.2070458,96624.0,96623.0,0.00015524]
[1740218996255,0.2070608,96617.0,96616.0,0.18526193]
[1740218996558,0.2070822,96607.0,96606.0,0.30896504]
[1740218996757,0.5678822,96607.0,96606.0,0.28645576]
[1740218996949,0.5678822,96607.0,96606.0,0.18560017]
[1740218998150,0.3608,96607.0,96597.0,0.00015524]
[1740218998351,0.2070973,96600.0,96597.0,0.00015524]
[1740218998952,0.2071016,96598.0,96597.0,0.00015524]
[1740218999572,0.2071016,96598.0,96597.0,0.20725894]
[1740218999868,0.2041016,96598.0,96597.0,0.20725894]
[1740219000056,0.2070911,96605.0,96604.0,0.2070887]
[1740219000363,0.5678823,96607.0,96606.0,0.2070844]
[1740219001160,0.3608,96607.0,96606.0,0.2070844]
[1740219001466,0.05192487,96609.0,96608.0,0.2070801]
[1740219001467,0.00015497,96609.0,96608.0,0.2070801]
[1740219001670,0.20723297,96609.0,96608.0,0.2070801]
[1740219002365,0.2070844,96606.0,96605.0,0.0975]
[1740219002756,0.2070844,96606.0,96605.0,0.0319]
[1740219003162,0.2070994,96599.0,96598.0,0.061]
[1740219003756,0.5678994,96599.0,96598.0,0.061]
[1740219004069,0.3608,96599.0,96598.0,0.3012016]
[1740219004566,0.3608,96599.0,96598.0,0.3022016]
[1740219004956,0.3608,96599.0,96598.0,0.3042016]
[1740219005167,0.5678994,96599.0,96598.0,0.3042016]
[1740219006758,0.5678994,96599.0,96598.0,0.0971]
[1740219007059,0.5678994,96599.0,96598.0,0.0361]
[1740219007660,0.5678994,96599.0,96598.0,0.2432016]
[1740219008370,0.5678994,96599.0,96598.0,0.0361]
[1740219009170,0.5678994,96599.0,96598.0,0.2432016]
[1740219011662,0.00015497,96609.0,96607.0,0.2070801]
[1740219011864,0.2588503,96608.0,96607.0,0.2070801]
[1740219012567,0.2588503,96608.0,96605.0,0.0517714]
[1740219012767,0.2070844,96606.0,96605.0,0.2070852]
[1740219012972,0.0517742,96601.0,96598.0,0.0351]
[1740219013173,0.2070994,96599.0,96598.0,0.2939722]
[1740219013472,0.2070994,96599.0,96598.0,0.2919722]
[1740219014567,0.2070974,96600.0,96599.0,0.2070973]
[1740219015877,0.2588695,96604.0,96603.0,0.2070823]
[1740219016375,0.25901617,96609.0,96608.0,0.2070801]
[1740219016585,0.00015497,96609.0,96608.0,0.2070801]
[1740219017176,0.20723297,96609.0,96608.0,0.2070801]
[1740219017372,0.00015497,96609.0,96608.0,0.2070801]
[1740219018179,0.00115497,96609.0,96608.0,0.2070801]
[1740219019174,0.20823297,96609.0,96608.0,0.2070801]
[1740219019488,0.2070251,96639.0,96638.0,0.2070079]
[1740219019672,0.3608,96648.0,96635.0,0.3608]
[1740219019871,0.12356494,96645.0,96636.0,0.0333]
[1740219020072,0.12356494,96645.0,96644.0,0.207003]
[1740219020379,0.3608,96648.0,96636.0,0.0333]
[1740219020687,0.001,96639.0,96638.0,0.2080158]
[1740219020979,0.001,96639.0,96638.0,0.22519871]
[1740219021171,0.001,96639.0,96638.0,0.2251987]
[1740219021374,0.0317,96645.0,96644.0,0.002]
[1740219021975,0.2387009,96645.0,96644.0,0.002]
[1740219022278,0.2070201,96636.0,96635.0,0.00015524]
[1740219023282,0.0633,96637.0,96635.0,0.00015524]
[1740219023671,0.0633,96637.0,96635.0,0.20817624]
[1740219023868,0.0633,96637.0,96636.0,0.2070201]
[1740219024093,0.0633,96637.0,96636.0,0.2401201]
[1740219025177,0.0633,96637.0,96636.0,0.0331]
[1740219025579,0.0633,96637.0,96636.0,0.2401202]
[1740219025771,0.0322,96637.0,96636.0,0.2401202]
[1740219026180,0.0332,96637.0,96636.0,0.2411202]
[1740219026375,0.001,96637.0,96636.0,0.2411202]
[1740219026679,0.003,96637.0,96636.0,0.2421202]
[1740219028480,0.003,96637.0,96636.0,0.0351]
[1740219028880,0.003,96637.0,96636.0,0.002]
[1740219029977,0.210018,96637.0,96636.0,0.002]
[1740219030176,0.003,96637.0,96636.0,0.002]
[1740219031087,0.210018,96637.0,96636.0,0.002]
[1740219031290,0.003,96637.0,96636.0,0.002]
[1740219031798,0.210018,96637.0,96636.0,0.002]
[1740219031991,0.003,96637.0,96636.0,0.002]
[1740219032191,0.3638,96637.0,96636.0,0.002]
[1740219032379,0.570818,96637.0,96636.0,0.002]
[1740219033682,0.3638,96637.0,96636.0,0.002]
[1740219034086,0.570818,96637.0,96636.0,0.002]
[1740219034397,1.391258,96637.0,96636.0,0.002]
[1740219034583,1.18424,96637.0,96636.0,0.002]
[1740219035179,0.003,96637.0,96636.0,0.002]
[1740219035485,0.003,96637.0,96636.0,0.2712201]
[1740219035785,0.003,96637.0,96636.0,0.3035201]
[1740219036289,0.003,96637.0,96636.0,0.2412201]
[1740219036689,0.003,96637.0,96636.0,0.0342]
[1740219037193,0.003,96637.0,96636.0,0.2412201]
[1740219042190,0.003,96637.0,96636.0,0.0342]
[1740219042499,0.003,96637.0,96636.0,0.2412201]
[1740219044802,0.8234,96637.0,96636.0,0.2724201]
[1740219046086,1.030418,96637.0,96636.0,0.0342]
[1740219046493,1.030418,96637.0,96636.0,0.2412201]
[1740219046693,0.8234,96637.0,96636.0,0.2412201]
[1740219046893,0.8234,96637.0,96636.0,0.0342]
[1740219047188,0.8234,96637.0,96636.0,0.2412201]
[1740219047393,1.030418,96637.0,96636.0,0.2412201]
[1740219047698,0.8234,96637.0,96636.0,0.0342]
[1740219047998,0.8234,96637.0,96636.0,0.2412201]
[1740219048497,0.8234,96637.0,96636.0,0.2718201]
[1740219049293,0.8234,96637.0,96636.0,0.0648]
[1740219049498,1.030418,96637.0,96636.0,0.0342]
[1740219049897,1.030418,96637.0,96636.0,0.002]
[1740219050290,1.391218,96637.0,96636.0,0.002]
[1740219051299,0.2070565,96619.0,96604.0,0.3608]
[1740219051499,0.2070565,96619.0,96613.0,0.0517673]
[1740219051707,0.2070565,96619.0,96617.0,0.20706]
[1740219051907,0.2070565,96619.0,96615.0,0.51522172]
[1740219052098,0.2070565,96619.0,96615.0,0.51662172]
[1740219052301,0.2070565,96619.0,96617.0,0.2070601]
[1740219052497,0.2080565,96619.0,96617.0,0.2070601]
[1740219052704,0.2080565,96619.0,96615.0,0.30815822]
[1740219052901,0.2080565,96619.0,96617.0,0.2070594]
[1740219053105,0.2080565,96619.0,96615.0,0.35992412]
[1740219053404,0.2080565,96619.0,96615.0,0.30815822]
[1740219053608,0.2080565,96619.0,96614.0,0.2070653]
[1740219053912,0.207063,96616.0,96615.0,0.2070646]
[1740219054207,0.2070715,96613.0,96612.0,0.2070699]
[1740219054402,0.0517662,96616.0,96611.0,0.39314]
[1740219054603,0.3106029,96616.0,96615.0,0.2070651]
[1740219055106,0.3136029,96616.0,96615.0,0.2070651]
[1740219056310,0.3146029,96616.0,96615.0,0.2070651]
[1740219056610,0.3146029,96616.0,96611.0,0.3931]
[1740219056611,0.2070715,96612.0,96611.0,0.6519368]
[1740219056810,0.2070715,96612.0,96611.0,0.6505368]
[1740219057006,0.2070715,96612.0,96611.0,0.3917]
[1740219057709,0.2090715,96612.0,96611.0,0.5987737]
[1740219058107,0.2090715,96612.0,96611.0,0.3917]
[1740219058902,0.2100715,96612.0,96611.0,0.3917]
[1740219059319,0.2100715,96612.0,96611.0,0.0309]
[1740219059613,0.2070758,96610.0,96609.0,0.00278826]
[1740219060011,0.2374758,96610.0,96609.0,0.00278826]
[1740219060816,0.2394758,96610.0,96609.0,0.00278826]
[1740219061804,0.2404758,96610.0,96609.0,0.00278826]
[1740219068610,0.2404758,96610.0,96609.0,0.20986626]
[1740219068811,0.2404758,96610.0,96609.0,0.00278826]
[1740219069615,1.0609958,96610.0,96609.0,0.00278826]
[1740219071623,0.2071101,96594.0,96593.0,0.0648]
[1740219071917,0.2071101,96594.0,96593.0,0.0326]
[1740219072414,0.2071294,96585.0,96584.0,0.0636]
[1740219073018,0.2011294,96585.0,96584.0,0.0636]
[1740219073825,0.2011294,96585.0,96584.0,0.0766]
[1740219074421,0.2011294,96585.0,96584.0,0.002]
[1740219079020,0.5619294,96585.0,96584.0,0.002]
[1740219081529,0.5619294,96585.0,96575.0,0.00015524]
[1740219081530,0.2071487,96576.0,96575.0,0.00015524]
[1740219081725,1.0278287,96576.0,96575.0,0.00015524]
[1740219082729,1.0278287,96576.0,96575.0,0.00415524]
[1740219083628,1.0278287,96576.0,96575.0,0.00815524]
[1740219085631,1.0278287,96576.0,96575.0,0.21530614]
[1740219086037,1.0278287,96576.0,96575.0,0.00815524]
[1740219088532,0.207168,96567.0,96566.0,0.0639]
[1740219089033,0.2589832,96560.0,96559.0,0.2071846]
[1740219089234,0.2589832,96560.0,96559.0,0.0611]
[1740219089534,0.2071981,96553.0,96552.0,0.00155339]
[1740219089723,0.1931981,96553.0,96552.0,0.03245339]
[1740219089927,0.1931981,96553.0,96552.0,0.23965359]
[1740219090132,0.1861981,96553.0,96552.0,0.23965359]
[1740219090635,0.1861981,96553.0,96552.0,0.03245339]
[1740219090834,0.1871981,96553.0,96552.0,0.06965339]
[1740219091432,0.1861981,96553.0,96552.0,0.00855339]
[1740219092024,0.1861981,96553.0,96552.0,0.21575359]
[1740219092227,0.1871981,96553.0,96552.0,0.00855339]
[1740219092427,0.1871981,96553.0,96552.0,0.21575359]
[1740219093038,0.002,96553.0,96552.0,0.21575359]
[1740219093233,0.2091981,96553.0,96552.0,0.21575359]
[1740219094328,0.002,96553.0,96552.0,0.57655359]
[1740219094534,0.001,96553.0,96552.0,0.57655359]
[1740219095039,0.2081981,96553.0,96552.0,0.57655359]
[1740219095337,0.001,96553.0,96552.0,0.57655359]
[1740219096435,0.0302,96558.0,96554.0,0.0517987]
[1740219096639,0.2373873,96558.0,96557.0,0.2071895]
[1740219097235,0.2373873,96558.0,96557.0,0.2396895]
[1740219097733,0.2071873,96560.0,96559.0,0.2071852]
[1740219098139,0.2919773,96563.0,96562.0,0.2071788]
[1740219098841,0.2919773,96563.0,96559.0,0.2589769]
[1740219098842,0.2071831,96560.0,96559.0,0.2589769]
[1740219099044,0.2081831,96560.0,96559.0,0.2589769]
[1740219100247,0.2101831,96560.0,96559.0,0.2589769]
[1740219100836,0.2091831,96560.0,96559.0,0.2589769]
[1740219104653,0.002,96560.0,96559.0,0.2589769]
[1740219105051,0.2091831,96560.0,96559.0,0.2589769]
[1740219107047,0.002,96560.0,96559.0,0.2589769]
[1740219107544,0.2091831,96560.0,96559.0,0.2589769]
[1740219108946,1.0301431,96560.0,96559.0,0.2589769]
[1740219114754,0.2071981,96553.0,96552.0,0.62275149]
[1740219114957,0.2071981,96553.0,96552.0,0.62135149]
[1740219123967,0.2071981,96553.0,96552.0,0.00155339]
[1740219124550,0.2071981,96553.0,96552.0,0.20875559]
[1740219124757,0.2071981,96553.0,96552.0,0.00155339]
[1740219126164,0.21732599,96553.0,96552.0,0.00155339]
[1740219127563,0.2072232,96543.0,96529.0,0.30815822]
[1740219127866,0.2072351,96538.0,96529.0,0.30815822]
[1740219128965,0.4139951,96538.0,96529.0,0.30815822]
[1740219129759,0.4139951,96538.0,96528.0,0.00015533]
[1740219129760,0.2072564,96529.0,96528.0,0.00015533]
[1740219129968,1.0382164,96529.0,96528.0,0.00015533]
[1740219130464,1.0704164,96529.0,96528.0,0.00015533]
[1740219130674,1.1339164,96529.0,96528.0,0.00015533]
[1740219132069,1.1339164,96529.0,96528.0,0.20742773]
[1740219133564,1.0600164,96529.0,96528.0,0.20742773]
[1740219133765,1.0700164,96529.0,96528.0,0.20742773]
[1740219134157,1.0600164,96529.0,96528.0,0.23832773]
[1740219134358,0.86276,96529.0,96528.0,0.23832773]
[1740219134564,0.82096,96529.0,96528.0,0.26912773]
[1740219134766,0.82096,96529.0,96528.0,0.30182773]
[1740219135567,0.83096,96529.0,96528.0,0.30182773]
[1740219135765,1.0382306,96529.0,96528.0,0.30182773]
[1740219139276,1.0382306,96529.0,96528.0,0.26912773]
[1740219139478,1.0382306,96529.0,96528.0,0.30082773]
[1740219139984,1.0282306,96529.0,96528.0,0.30082773]
[1740219142471,0.82096,96529.0,96528.0,0.30082773]
[1740219143373,1.0282306,96529.0,96528.0,0.30082773]
[1740219144274,0.82096,96529.0,96528.0,0.30082773]
[1740219144972,0.82096,96529.0,96528.0,0.00015533]
[1740219145174,1.0282306,96529.0,96528.0,0.00015533]
[1740219145370,1.0282306,96529.0,96528.0,0.20742803]
[1740219160801,0.82096,96529.0,96528.0,0.20742803]
[1740219163500,0.82096,96529.0,96528.0,0.01311542]
[1740219163806,1.0282303,96529.0,96528.0,0.00015533]
[1740219164199,1.0890303,96529.0,96528.0,0.00015533]
[1740219164607,1.0890303,96529.0,96528.0,0.20742773]
[1740219164907,1.0890303,96529.0,96528.0,0.00015533]
[1740219165603,0.2072896,96520.0,96519.0,0.55833115]
[1740219165999,0.2476896,96520.0,96519.0,0.55833115]
[1740219167206,0.2476896,96520.0,96519.0,0.3109231]
[1740219167503,0.0404,96520.0,96518.0,0.3608]
[1740219167699,0.2498712,96519.0,96518.0,0.6198895]
[1740219168202,0.0426,96519.0,96518.0,0.6198895]
[1740219168404,0.2498709,96519.0,96518.0,0.6198895]
[1740219169300,0.0426,96519.0,96518.0,0.6198895]
[1740219169506,0.249871,96519.0,96518.0,0.6502895]
[1740219169801,0.385577,96526.0,96525.0,0.2072582]
[1740219170001,0.17832,96526.0,96525.0,0.2072582]
[1740219170803,0.385576,96526.0,96525.0,0.2072582]
[1740219171005,0.395576,96526.0,96525.0,0.2072582]
[1740219172213,0.2072711,96519.0,96518.0,0.36224]
[1740219172513,0.2172711,96519.0,96518.0,0.5680732]
[1740219172805,0.2497711,96519.0,96518.0,0.5680732]
[1740219174415,0.2497711,96519.0,96518.0,0.3608]
[1740219177808,0.4229711,96519.0,96518.0,0.3608]
[1740219180015,0.2072732,96518.0,96517.0,0.2072739]
[1740219180222,0.2172732,96518.0,96517.0,0.2072739]
[1740219181323,0.2590964,96517.0,96516.0,0.2072771]
[1740219181515,0.3009964,96517.0,96516.0,0.2072771]
[1740219182611,0.3019964,96517.0,96516.0,0.2072771]
[1740219185118,0.2072796,96515.0,96514.0,0.5680795]
[1740219185313,0.2172796,96515.0,96514.0,0.5680795]
[1740219185705,0.2172796,96515.0,96514.0,0.3608]
[1740219185918,0.2172796,96515.0,96514.0,0.5680818]
[1740219186310,0.2484796,96515.0,96514.0,0.5680818]
[1740219186506,0.2484796,96515.0,96514.0,0.3608]
[1740219186816,0.2072882,96511.0,96510.0,0.00015541]
[1740219187015,0.2172882,96511.0,96510.0,0.00015541]
[1740219188018,0.2182882,96511.0,96510.0,0.00015541]
[1740219188213,0.2192882,96511.0,96510.0,0.00015541]
[1740219189725,0.2092882,96511.0,96510.0,0.00015541]
[1740219191207,0.5700882,96511.0,96510.0,0.00015541]
[1740219192919,0.7363282,96511.0,96510.0,0.00015541]
[1740219193216,0.7363282,96511.0,96510.0,0.20744581]
[1740219193417,0.5700882,96511.0,96510.0,0.20744581]
[1740219193622,0.3628,96511.0,96510.0,0.20744581]
[1740219193822,0.5700882,96511.0,96510.0,0.20744581]
[1740219194122,0.008,96511.0,96510.0,0.20744581]
[1740219194325,0.014,96511.0,96510.0,0.20744581]
[1740219194920,0.007,96511.0,96510.0,0.20744581]
[1740219195424,0.001,96511.0,96510.0,0.00015541]
[1740219195623,0.008,96511.0,96510.0,0.20744581]
[1740219197124,0.013,96511.0,96510.0,0.20744581]
[1740219197817,0.008,96511.0,96510.0,0.20744581]
[1740219198023,0.001,96511.0,96510.0,0.20744581]
[1740219198221,0.0831142,96526.0,96510.0,0.20744581]
[1740219198222,0.0313,96526.0,96525.0,0.2072582]
[1740219198626,0.238556,96526.0,96525.0,0.2072582]
[1740219200624,0.239556,96526.0,96525.0,0.2072582]
[1740219200820,0.241556,96526.0,96525.0,0.2072582]
[1740219202129,0.239556,96526.0,96525.0,0.2072582]
[1740219202321,0.241556,96526.0,96525.0,0.2072582]
[1740219204224,0.242556,96526.0,96525.0,0.2072582]
[1740219204827,0.241556,96526.0,96525.0,0.2072582]
[1740219209639,0.240556,96526.0,96525.0,0.2072582]
[1740219209934,0.241556,96526.0,96525.0,0.2072582]
[1740219210924,0.239556,96526.0,96525.0,0.2072582]
[1740219211236,0.241556,96526.0,96525.0,0.2072582]
[1740219212730,0.238556,96526.0,96525.0,0.2072582]
[1740219212930,0.241556,96526.0,96525.0,0.2072582]
[1740219213835,0.0343,96526.0,96525.0,0.2072582]
[1740219214538,0.0333,96526.0,96525.0,0.2072582]
[1740219214736,0.0343,96526.0,96525.0,0.2072582]
[1740219215034,0.241556,96526.0,96525.0,0.2072582]
[1740219215831,0.003,96526.0,96525.0,0.2072582]
[1740219216231,0.001,96526.0,96525.0,0.2072582]
[1740219216441,0.003,96526.0,96525.0,0.2072582]
[1740219222644,0.003,96526.0,96525.0,0.9288582]
[1740219223350,0.034,96526.0,96525.0,0.9288582]
[1740219223542,0.272456,96526.0,96525.0,0.9288582]
[1740219227041,0.0652,96526.0,96525.0,0.9288582]
[1740219227548,0.272456,96526.0,96525.0,0.9288582]
[1740219228343,0.0652,96526.0,96525.0,0.9288582]
[1740219231059,0.272456,96526.0,96525.0,0.9288582]
[1740219234965,0.272456,96526.0,96525.0,0.5680582]
[1740219240061,0.0652,96526.0,96525.0,0.5680582]
[1740219241162,0.0342,96526.0,96525.0,0.5680582]
[1740219244560,0.003,96526.0,96525.0,0.5680582]
[1740219244761,0.00015541,96527.0,96526.0,0.207256]
[1740219245267,0.00448,96560.0,96526.0,0.15564]
[1740219245568,0.0327,96549.0,96548.0,0.2072088]
[1740219246858,0.0397,96549.0,96548.0,0.2072088]
[1740219247669,0.0397,96549.0,96548.0,0.21777952]
[1740219248455,0.0467,96549.0,96548.0,0.21777952]
[1740219251374,0.2539067,96549.0,96548.0,0.21777952]
[1740219252067,0.0467,96549.0,96548.0,0.21777952]
[1740219252462,0.2539066,96549.0,96548.0,0.21777952]
[1740219254069,0.2539066,96549.0,96548.0,0.2072088]
[1740219255065,0.2539066,96549.0,96548.0,0.21782626]
[1740219255265,0.0467,96549.0,96548.0,0.21782626]
[1740219255471,0.0631,96556.0,96555.0,0.2071937]
[1740219255871,0.2702916,96556.0,96555.0,0.2071937]